fUSD/lending_fUSD_20260419
["ID","MTS","AMOUNT","RATE_DAILY","PERIOD"]
[420835093,1776607055613,500.0,0.00032876,120]
[420835094,1776607055913,500.0,0.00032876,120]
[420835095,1776607056070,500.0,0.00032876,120]
[420835096,1776607056192,500.0,0.00032876,120]
[420835097,1776607056298,500.0,0.00032876,120]
[420835098,1776607056435,500.0,0.00032876,120]
[420835099,1776607056528,500.0,0.00032876,120]
[420835100,1776607056642,500.0,0.00032876,120]
[420835101,1776607056755,500.0,0.00032876,120]
[420835102,1776607056855,500.0,0.00032876,120]
[420835103,1776607056966,638.88912566,0.00032876,120]
[420835104,1776607059608,555.64915367,0.0003287,120]
[420835105,1776607066426,2000.0,0.00032877,120]
[420835106,1776607080791,1000.0,0.00032877,120]
[420835107,1776607087931,300.0,0.000327,120]
[420835108,1776607094098,472.56,0.000137,120]
[420835109,1776607094488,-10000.01,0.0001,2]
[420835110,1776607094516,-10000.01,0.0001,2]
[420835111,1776607096571,-10000.01,0.0001,2]
[420835112,1776607096700,-10000.01,0.0001,2]
[420835113,1776607096823,-10000.01,0.0001,2]
[420835114,1776607096929,-10000.01,0.0001,2]
[420835115,1776607097034,-10000.01,0.0001,2]
[420835116,1776607097577,-10000.01,0.0001,2]
[420835117,1776607097683,-10000.01,0.0001,2]
[420835119,1776607108654,500.0,0.00027397,120]
[420835120,1776607108735,-10000.01,0.0001,2]
[420835121,1776607108879,500.0,0.00027397,120]
[420835122,1776607108954,-10000.01,0.0001,2]
[420835123,1776607109056,-10000.01,0.0001,2]
[420835124,1776607109105,500.0,0.00027397,120]
[420835125,1776607109192,-10000.01,0.0001,2]
[420835126,1776607109332,500.0,0.00027397,120]
[420835127,1776607109363,-10000.01,0.0001,2]
[420835128,1776607109466,-10000.01,0.0001,2]
[420835129,1776607109549,500.0,0.00027397,120]
[420835130,1776607109641,-10000.01,0.0001,2]
[420835131,1776607109720,-10000.01,0.0001,2]
[420835132,1776607109778,500.0,0.00027397,120]
[420835133,1776607109994,500.0,0.00027397,120]
[420835134,1776607110243,500.0,0.00027397,120]
[420835135,1776607110469,350.22074451,0.00027397,120]
[420835136,1776607111467,-10000.01,0.0001,2]
[420835137,1776607120065,618.93192956,0.00032877,120]
[420835138,1776607123776,-500.0,9.999e-05,2]
[420835139,1776607123809,-575.33726084,9.999e-05,2]
[420835140,1776607123838,-500.0,9.999e-05,2]
[420835141,1776607123869,-500.0,9.999e-05,2]
[420835142,1776607123900,-153.86462693,9.999e-05,2]
[420835143,1776607123931,-157.69320332,9.999e-05,2]
[420835144,1776607123962,-500.0,9.999e-05,2]
[420835145,1776607124000,-500.0,9.999e-05,2]
[420835146,1776607124044,-500.0,9.999e-05,2]
[420835147,1776607124081,-500.0,9.999e-05,2]
[420835148,1776607124118,-500.0,9.999e-05,2]
[420835149,1776607124232,-500.0,9.999e-05,2]
[420835150,1776607124267,-500.0,9.999e-05,2]
[420835151,1776607124304,-500.0,9.999e-05,2]
[420835152,1776607124340,-629.63522113,9.999e-05,2]
[420835153,1776607124376,-500.0,9.999e-05,2]
[420835154,1776607124703,-226.21981782,0.0001,2]
[420835155,1776607124720,-4740.73955774,0.0001,2]
[420835156,1776607124740,-10000.01,0.0001,2]
[420835157,1776607132852,-10000.01,0.0001,2]
[420835158,1776607137921,606.15135526,0.0003,120]
[420835159,1776607138999,-10000.01,0.0001,2]
[420835160,1776607155019,300.0,0.00028608,120]
[420835161,1776607155785,300.0,0.00028608,120]
[420835162,1776607158649,231.0,0.00028608,120]
[420835163,1776607188086,-175.21,9.225e-05,2]
[420835164,1776607188753,-150.0,9.314e-05,2]
[420835165,1776607188779,-2.56337109,9.614e-05,2]
[420835166,1776607197138,168.81476278,0.0003,120]
[420835167,1776607201155,150.0,0.00021279,120]
[420835168,1776607201560,400.0,0.00032876,120]
[420835169,1776607201935,250.59953419,0.00021279,120]
[420835170,1776607202238,400.0,0.00032876,120]
[420835171,1776607202930,327.35618492,0.00032876,120]
[420835172,1776607202977,-160.63662891,9.614e-05,2]
[420835173,1776607203000,-34.36337109,9.614e-05,2]
[420835174,1776607204206,159.0,0.00032344,120]
[420835175,1776607204403,-208.85,9.225e-05,2]
[420835176,1776607206181,154.0,0.00024122,120]
[420835177,1776607227834,2000.0,0.000308,120]
[420835178,1776607229520,2295.07524,7.5e-05,2]
[420835179,1776607229969,2295.07524,7.5e-05,2]
[420835180,1776607230111,2295.07524,7.5e-05,2]
[420835181,1776607230260,2295.07524,7.5e-05,2]
[420835182,1776607230497,2295.07524,7.5e-05,2]
[420835183,1776607230619,610.33462507,0.00032849,120]
[420835184,1776607230658,3926.82124354,0.00032877,120]
[420835185,1776607230715,150.0,0.00031806,120]
[420835186,1776607240172,566.40494687,0.00029999,120]
[420835187,1776607250495,12373.57448656,0.00032876,120]
[420835188,1776607251534,1275.29413339,0.0003287,120]
[420835189,1776607263023,1862.809999,0.0003287,120]
[420835190,1776607282717,648.28,0.000158,30]
[420835191,1776607284419,425.3,0.000137,120]
[420835194,1776607315454,2255.0,0.00032876,120]
[420835195,1776607318250,150.0,0.00032515,120]
[420835200,1776607320332,1000.0,0.00027397,120]
[420835201,1776607320793,1000.0,0.00030137,120]
[420835202,1776607321283,1041.63289667,0.00032877,120]
[420835203,1776607357427,1500.0,0.0003287,120]
[420835204,1776607394343,150.0,0.00032499,120]
[420835205,1776607406600,5466.61,0.00032876,120]
[420835206,1776607437341,3452.58,0.00032876,120]
[420835207,1776607450191,4052.0,0.00032713,120]
[420835208,1776607453376,42702.68454967,7.5e-05,2]
[420835209,1776607459729,1287.45,0.0003269,120]
[420835210,1776607469879,150.0,0.00032549,120]
[420835211,1776607472505,382.77,0.000143,120]
[420835212,1776607482638,500.0,0.00032192,120]
[420835213,1776607500068,601.51,0.000328,120]
[420835215,1776607507420,160.0,0.00032564,120]
[420835216,1776607508474,3452.58,0.00032876,120]
[420835217,1776607513189,240.61,0.000328,120]
[420835218,1776607526894,384.96,0.00032,120]
[420835219,1776607557512,150.0,0.00032574,120]
[420835220,1776607573935,-1200.0,9.224e-05,2]
[420835221,1776607573968,-269.0,9.224e-05,2]
[420835222,1776607573996,-300.0,9.224e-05,2]
[420835223,1776607574026,-291.15,9.225e-05,2]
[420835224,1776607574054,-500.0,9.225e-05,2]
[420835225,1776607574081,-500.0,9.225e-05,2]
[420835226,1776607574110,-224.43006575,9.225e-05,2]
[420835227,1776607574139,-166.32,9.311e-05,2]
[420835228,1776607574166,-260.0,9.863e-05,2]
[420835229,1776607574193,-632.01513129,9.99e-05,2]
[420835230,1776607574221,-300.0,9.994e-05,2]
[420835231,1776607574250,-300.0,9.994e-05,2]
[420835232,1776607574482,-1034.0,9.995e-05,2]
[420835233,1776607575156,-2002.7053315,9.999e-05,2]
[420835234,1776607575217,-5994.599337,9.999e-05,2]
[420835235,1776607575227,-48.88493742,9.999e-05,2]
[420835236,1776607575269,-101.11506258,9.999e-05,2]
[420835237,1776607575304,-500.0,9.999e-05,2]
[420835238,1776607575337,-500.0,9.999e-05,2]
[420835239,1776607575373,-545.20230005,9.999e-05,2]
[420835240,1776607575407,-500.0,9.999e-05,2]
[420835241,1776607575561,-5850.98730587,0.0001,2]
[420835242,1776607575579,-101.11506258,0.0001,2]
[420835243,1776607575592,-500.0,0.0001,2]
[420835244,1776607575608,-500.0,0.0001,2]
[420835245,1776607575621,-545.20230005,0.0001,2]
[420835246,1776607575635,-500.0,0.0001,2]
[420835247,1776607575652,-5707.37527474,0.0001,2]
[420835248,1776607576429,-10000.01,0.0001,2]
[420835249,1776607579848,-10000.01,0.0001,2]
[420835250,1776607579984,-10000.01,0.0001,2]
[420835251,1776607580126,-10000.01,0.0001,2]
[420835252,1776607620515,186.7402154,0.00032877,120]
[420835253,1776607626135,2501.72495915,0.00032548,120]
[420835254,1776607630755,240.0,0.00027397,120]
[420835255,1776607639573,150.0,0.00032561,120]
[420835256,1776607664769,344.5,0.000143,120]
[420835257,1776607705848,5000.0,0.00032877,120]
[420835258,1776607720085,150.0,0.00032024,120]
[420835259,1776607746525,1560.73497115,0.00032876,120]
[420835260,1776607747897,256.0,0.00026376,120]
[420835261,1776607796325,150.0,0.00032614,120]
[420835262,1776607801195,240.35972052,0.00022358,120]
[420835266,1776607835155,-277.0,9.863e-05,2]
[420835267,1776607835169,-260.0,9.863e-05,2]
[420835268,1776607835183,-2.47465699,9.998e-05,2]
[420835269,1776607835404,-1197.52534301,9.998e-05,2]
[420835270,1776607835419,-300.0,9.998e-05,2]
[420835271,1776607835434,-500.0,9.999e-05,2]
[420835272,1776607835450,-500.0,9.999e-05,2]
[420835273,1776607835464,-500.0,9.999e-05,2]
[420835274,1776607835478,-500.0,9.999e-05,2]
[420835275,1776607835492,-173.752954,9.999e-05,2]
[420835276,1776607835506,-500.0,9.999e-05,2]
[420835277,1776607835522,-500.0,9.999e-05,2]
[420835278,1776607835537,-500.0,9.999e-05,2]
[420835279,1776607835552,-500.0,9.999e-05,2]
[420835280,1776607835566,-500.0,9.999e-05,2]
[420835281,1776607835581,-500.0,9.999e-05,2]
[420835282,1776607835594,-500.0,9.999e-05,2]
[420835283,1776607835610,-500.0,9.999e-05,2]
[420835284,1776607835624,-500.0,9.999e-05,2]
[420835285,1776607835640,-500.0,9.999e-05,2]
[420835286,1776607835654,-500.0,9.999e-05,2]
[420835287,1776607835668,-500.0,9.999e-05,2]
[420835288,1776607835681,-500.0,9.999e-05,2]
[420835289,1776607835696,-500.0,9.999e-05,2]
[420835290,1776607835711,-500.0,9.999e-05,2]
[420835291,1776607835725,-500.0,9.999e-05,2]
[420835292,1776607835737,-500.0,9.999e-05,2]
[420835293,1776607835750,-500.0,9.999e-05,2]
[420835294,1776607835765,-500.0,9.999e-05,2]
[420835295,1776607835777,-500.0,9.999e-05,2]
[420835296,1776607835791,-500.0,9.999e-05,2]
[420835297,1776607835804,-500.0,9.999e-05,2]
[420835298,1776607835822,-500.0,9.999e-05,2]
[420835299,1776607835835,-196.82974535,9.999e-05,2]
[420835300,1776607835850,-500.0,9.999e-05,2]
[420835301,1776607835863,-500.0,9.999e-05,2]
[420835302,1776607835876,-500.0,9.999e-05,2]
[420835303,1776607835890,-500.0,9.999e-05,2]
[420835304,1776607835904,-500.0,9.999e-05,2]
[420835305,1776607835916,-500.0,9.999e-05,2]
[420835306,1776607835929,-500.0,9.999e-05,2]
[420835307,1776607835944,-500.0,9.999e-05,2]
[420835308,1776607835958,-331902.5186744,0.0001,2]
[420835309,1776607837294,-801.92539945,0.0001,2]
[420835310,1776607837344,-3432.56317461,0.0001,2]
[420835311,1776607837386,-76298.1,0.0001,2]
[420835312,1776607837414,-259.2,0.0001,2]
[420835313,1776607837425,-500.0,0.00010714,2]
[420835314,1776607837435,-1000.0,0.00010815,2]
[420835315,1776607837445,-9613.0036,0.00010815,2]
[420835316,1776607837455,-4534.43237263,0.000109,2]
[420835317,1776607837466,-195.0,0.00010998,2]
[420835318,1776607837476,-195.0,0.00010998,2]
[420835319,1776607837486,-195.0,0.00010998,2]
[420835320,1776607837496,-195.0,0.00010998,2]
[420835321,1776607837506,-195.0,0.00010998,2]
[420835322,1776607837516,-250.0,0.00010998,2]
[420835323,1776607837525,-190.0,0.00010998,2]
[420835324,1776607837535,-1680.0,0.00010998,2]
[420835325,1776607837544,-600.0,0.00010999,2]
[420835326,1776607837555,-600.0,0.00010999,2]
[420835328,1776607837565,-600.0,0.00010999,2]
[420835330,1776607837575,-600.0,0.00010999,2]
[420835332,1776607837585,-600.0,0.00010999,2]
[420835334,1776607837595,-25361.92199387,0.0001106,2]
[420835336,1776607837605,-1767.32019507,0.00011099,2]
[420835338,1776607837614,-2240.21643143,0.00011099,2]
[420835340,1776607837624,-152.0,0.00011338,7]
[420835342,1776607837633,-152.0,0.00011338,7]
[420835343,1776607837642,-152.0,0.00011412,7]
[420835344,1776607837653,-152.0,0.00011412,7]
[420835345,1776607837663,-152.0,0.00011412,7]
[420835346,1776607837672,-162.89939758,0.00011507,2]
[420835347,1776607837682,-250.0,0.00011671,2]
[420835348,1776607837691,-250.0,0.00011671,2]
[420835349,1776607837701,-250.0,0.00011671,2]
[420835350,1776607837711,-250.0,0.00011671,2]
[420835351,1776607837721,-5000.0,0.000119,2]
[420835352,1776607837730,-200.0,0.00011993,2]
[420835353,1776607837740,-1243.57659106,0.00011993,2]
[420835354,1776607837749,-528.67857148,0.00011999,2]
[420835355,1776607837759,-114827.1881892,0.00012,2]
[420835356,1776607837773,-47891.25497653,0.00012,2]
[420835357,1776607837786,-32583.79085481,0.00012,2]
[420835358,1776607837798,-69751.96271382,0.00012,2]
[420835359,1776607837810,-1254.41808677,0.00012,2]
[420835360,1776607837846,-38294.7938603,0.00012,2]
[420835361,1776607837858,-367.5852002,0.00012,2]
[420835362,1776607837869,-805.848,0.00012,2]
[420835363,1776607837881,-819.1793169,0.00012,2]
[420835413,1776607838678,-146147.43723251,0.00012,2]
[420835414,1776607838722,-2977.99332964,0.00012,2]
[420835415,1776607838734,-1894.854294,0.00012,2]
[420835416,1776607838745,-9910.40881196,0.00012,2]
[420835417,1776607838757,-1013.0,0.00012,2]
[420835419,1776607840137,-100277.25787655,0.00012,2]
[420835420,1776607840146,-152.0,0.00012002,7]
[420835421,1776607840157,-152.0,0.00012002,7]
[420835422,1776607840167,-152.0,0.00012002,7]
[420835423,1776607840178,-152.0,0.00012002,7]
[420835424,1776607840188,-2351.0,0.00012098,2]
[420835425,1776607840197,-2240.21643142,0.000121,2]
[420835426,1776607840207,-1767.32019504,0.0001223,2]
[420835427,1776607840217,-4217.0,0.00012329,2]
[420835428,1776607840227,-176.82638054,0.00012478,2]
[420835429,1776607840238,-174.61919141,0.00012478,2]
[420835430,1776607840247,-219.23011724,0.00012478,2]
[420835431,1776607840258,-203.86501494,0.00012478,2]
[420835432,1776607840267,-4534.43237258,0.00012829,2]
[420835433,1776607840277,-14127.93,0.00012893,2]
[420835434,1776607840287,-9999.99,0.00012893,2]
[420835435,1776607840296,-3417.49,0.00012893,2]
[420835436,1776607840307,-2591.0,0.00012893,2]
[420835437,1776607840316,-910.580462,0.00012981,2]
[420835438,1776607840326,-266.381,0.00012989,2]
[420835439,1776607840335,-194.24097533,0.00013026,2]
[420835440,1776607840345,-2473.0,0.00013028,2]
[420835441,1776607840355,-3411.589,0.00013028,2]
[420835442,1776607840365,-192.328,0.00013098,2]
[420835443,1776607840379,-280.33641364,0.0001323,2]
[420835444,1776607840389,-769.0,0.00013307,2]
[420835445,1776607840399,-490.49,0.00013688,2]
[420835446,1776607840409,-500.0,0.00013698,2]
[420835447,1776607840419,-500.0,0.00013698,2]
[420835448,1776607840428,-500.0,0.00013698,2]
[420835449,1776607840438,-500.0,0.00013698,2]
[420835450,1776607840448,-500.0,0.00013698,2]
[420835451,1776607840457,-500.0,0.00013698,2]
[420835452,1776607840468,-352.90040947,0.00013698,2]
[420835453,1776607840478,-500.0,0.00013698,2]
[420835454,1776607840489,-500.0,0.00013698,2]
[420835455,1776607840499,-500.0,0.00013698,2]
[420835456,1776607840509,-500.0,0.00013698,2]
[420835457,1776607840519,-500.0,0.00013698,2]
[420835459,1776607840528,-500.0,0.00013698,2]
[420835460,1776607840538,-313.62872498,0.00013698,2]
[420835461,1776607840548,-500.0,0.00013698,2]
[420835462,1776607840557,-500.0,0.00013698,2]
[420835463,1776607840566,-500.0,0.00013699,2]
[420835464,1776607840576,-636.97,0.000137,2]
[420835465,1776607840586,-1355.42,0.000137,2]
[420835466,1776607840595,-126160.28,0.000137,2]
[420835467,1776607840605,-5541.91,0.00014222,2]
[420835468,1776607840615,-2664.21,0.00014258,2]
[420835469,1776607840624,-1295.49,0.00014258,2]
[420835470,1776607840634,-2240.21643142,0.000143,2]
[420835471,1776607840644,-1001.76893914,0.00014368,2]
[420835472,1776607840654,-1767.32019504,0.00014414,2]
[420835473,1776607840663,-500.0,0.00014463,2]
[420835474,1776607840673,-986.0,0.000149,2]
[420835475,1776607840683,-986.0,0.000149,2]
[420835476,1776607840692,-986.0,0.000149,2]
[420835477,1776607840702,-986.0,0.000149,2]
[420835478,1776607840711,-986.0,0.000149,2]
[420835479,1776607840721,-986.0,0.000149,2]
[420835480,1776607840730,-986.0,0.000149,2]
[420835481,1776607840740,-986.0,0.000149,2]
[420835482,1776607840750,-986.0,0.000149,2]
[420835483,1776607840759,-594.0,0.000149,2]
[420835484,1776607840769,-500.72491967,0.000152,3]
[420835485,1776607840783,-5888.0,0.0001535,2]
[420835486,1776607840793,-5888.0,0.00015366,2]
[420835487,1776607840803,-803.0,0.00015371,5]
[420835488,1776607840815,-152.0,0.00015395,7]
[420835489,1776607840826,-5888.0,0.00015401,2]
[420835490,1776607840836,-5888.0,0.00015409,2]
[420835491,1776607840846,-1115.99999999,0.00015423,2]
[420835492,1776607840856,-5888.0,0.0001551,2]
[420835493,1776607840866,-5888.0,0.00015534,2]
[420835494,1776607840876,-5888.0,0.00015548,2]
[420835495,1776607840886,-5888.0,0.00015556,2]
[420835496,1776607840896,-5888.0,0.00015711,2]
[420835497,1776607840906,-500.0,0.00015743,2]
[420835498,1776607840915,-5888.0,0.00015776,2]
[420835499,1776607840925,-5888.0,0.00015836,2]
[420835500,1776607840935,-5888.0,0.00015932,2]
[420835501,1776607840944,-5888.0,0.00015963,2]
[420835502,1776607840955,-2473.0,0.00016028,2]
[420835503,1776607840966,-500.0,0.0001608,2]
[420835504,1776607840976,-5888.0,0.00016081,2]
[420835505,1776607840986,-5888.0,0.0001614,2]
[420835506,1776607840996,-988.83,0.0001614,2]
[420835507,1776607841007,-126160.28,0.000162,2]
[420835508,1776607841016,-1116.0,0.00016235,2]
[420835509,1776607841026,-5888.0,0.00016285,2]
[420835510,1776607841037,-636.97,0.000163,2]
[420835511,1776607841048,-2538.78,0.00016338,2]
[420835512,1776607841058,-403.07,0.00016338,2]
[420835513,1776607841067,-5888.0,0.00016352,2]
[420835514,1776607841077,-5888.0,0.0001638,2]
[420835515,1776607841087,-5888.0,0.00016384,2]
[420835516,1776607841098,-5888.0,0.00016397,2]
[420835517,1776607841108,-1355.42,0.000164,2]
[420835518,1776607841118,-352.734813,0.0001641,7]
[420835519,1776607841127,-451.561755,0.0001641,7]
[420835520,1776607841138,-730.1,0.00016438,2]
[420835521,1776607841148,-850.0,0.000165,2]
[420835522,1776607841157,-2240.21643142,0.000165,2]
[420835523,1776607841167,-1820.74296029,0.00016521,2]
[420835524,1776607841182,-475.600671,0.00016533,7]
[420835525,1776607841192,-167.084911,0.00016539,7]
[420835526,1776607841202,-5888.0,0.00016591,2]
[420835527,1776607841212,-1767.32019504,0.00016597,2]
[420835528,1776607841221,-1820.74296029,0.00016603,2]
[420835529,1776607841231,-1820.74296029,0.00016658,2]
[420835530,1776607841241,-5888.0,0.00016667,2]
[420835531,1776607841251,-5888.0,0.00016705,2]
[420835532,1776607841262,-1820.74296029,0.0001674,2]
[420835533,1776607841272,-5888.0,0.00016745,2]
[420835534,1776607841282,-1820.74296029,0.00016795,2]
[420835535,1776607841292,-5888.0,0.00016871,2]
[420835536,1776607841301,-1820.74296029,0.00016877,2]
[420835537,1776607841311,-1820.74296029,0.00016932,2]
[420835538,1776607841321,-528.67857142,0.00016978,2]
[420835539,1776607841331,-1820.74296029,0.00016986,2]
[420835540,1776607841341,-867.29,0.00017019,2]
[420835541,1776607841351,-500.0,0.00017023,2]
[420835542,1776607841361,-1099.41085703,0.00017047,2]
[420835543,1776607841371,-1820.74296029,0.00017068,2]
[420835544,1776607841380,-1820.74296029,0.00017123,2]
[420835545,1776607841390,-196.24,0.00017165,2]
[420835546,1776607841400,-1820.74296029,0.00017205,2]
[420835547,1776607841409,-730.1,0.00017208,2]
[420835548,1776607841419,-1820.74296029,0.0001726,2]
[420835549,1776607841429,-150.0,0.00017676,30]
[420835550,1776607841439,-250.0,0.00017682,2]
[420835551,1776607841449,-10000.0,0.00017694,2]
[420835552,1776607841459,-730.1,0.00017977,2]
[420835553,1776607841468,-126160.28,0.00018,2]
[420835554,1776607841478,-636.97,0.000182,2]
[420835555,1776607841487,-500.0,0.00018302,2]
[420835556,1776607841497,-200.0,0.00018302,2]
[420835557,1776607841507,-1355.42,0.000184,2]
[420835558,1776607841516,-1033.5,0.000185,7]
[420835559,1776607841526,-2240.21643142,0.000187,2]
[420835560,1776607841536,-730.1,0.00018746,2]
[420835561,1776607841546,-150.0,0.00018755,30]
[420835562,1776607841556,-1767.32019504,0.00018781,2]
[420835563,1776607841569,-2473.0,0.00019028,2]
[420835564,1776607841580,-172.23,0.00019269,7]
[420835565,1776607841590,-213.38,0.00019423,7]
[420835566,1776607841600,-730.1,0.00019515,2]
[420835567,1776607841609,-500.0,0.00019582,2]
[420835568,1776607841619,-1822.91,0.000196,6]
[420835569,1776607841629,-648.28,0.000196,6]
[420835570,1776607841639,-150.0,0.00019834,30]
[420835571,1776607841649,-283.0,0.0002,2]
[420835572,1776607841659,-200.0,0.0002,2]
[420835573,1776607841668,-2210.0,0.0002,2]
[420835574,1776607841678,-336.0,0.0002,2]
[420835575,1776607841688,-319.0,0.0002,2]
[420835576,1776607841698,-370.0,0.0002,2]
[420835577,1776607841708,-150.0,0.0002,10]
[420835578,1776607841717,-187.0,0.0002,2]
[420835579,1776607841727,-478.0,0.0002,2]
[420835580,1776607841737,-903.0,0.0002,2]
[420835581,1776607841747,-726.87,0.0002,30]
[420835582,1776607841758,-730.1,0.00020285,2]
[420835583,1776607841767,-500.0,0.00020861,2]
[420835584,1776607841777,-2240.21643142,0.000209,2]
[420835585,1776607841787,-167.76,0.00020913,30]
[420835586,1776607841796,-1767.32019504,0.00020965,2]
[420835587,1776607841806,-283.0,0.00021,2]
[420835588,1776607841816,-200.0,0.00021,2]
[420835589,1776607841826,-2210.0,0.00021,2]
[420835590,1776607841836,-336.0,0.00021,2]
[420835591,1776607841846,-319.0,0.00021,2]
[420835592,1776607841856,-370.0,0.00021,2]
[420835593,1776607841866,-124527.66166214,0.00021,2]
[420835594,1776607841883,-581.62694692,0.00021,2]
[420835595,1776607841895,-636.97555066,0.00021,2]
[420835610,1776607842899,-350.71735526,0.000119,2]
[420835611,1776607842952,-4649.28264474,0.000119,2]
[420835612,1776607842963,-160.0,0.00012495,2]
[420835613,1776607842973,-416.0,0.00013028,2]
[420835614,1776607842983,-152.0,0.00015395,7]
[420835615,1776607842994,-4534.43237258,0.00015757,2]
[420835616,1776607843005,-416.0,0.00016028,2]
[420835617,1776607843015,-416.0,0.00019028,2]
[420835626,1776607843576,-414.01584028,0.00021,2]
[420835627,1776607843606,-187.0,0.00021,2]
[420835628,1776607843617,-478.0,0.00021,2]
[420835629,1776607843627,-903.0,0.00021,2]
[420835630,1776607843636,-730.1,0.00021054,2]
[420835631,1776607843646,-260.0,0.00021309,3]
[420835632,1776607843655,-1529.01,0.00021456,2]
[420835633,1776607843666,-500.0,0.00021644,2]
[420835634,1776607843675,-500.0,0.00021644,2]
[420835635,1776607843685,-500.0,0.00021644,2]
[420835636,1776607843695,-500.0,0.00021644,2]
[420835637,1776607843705,-627.97306217,0.00021644,2]
[420835638,1776607843714,-500.0,0.00021644,2]
[420835639,1776607843724,-500.0,0.00021644,2]
[420835640,1776607843733,-500.0,0.00021644,2]
[420835641,1776607843743,-500.0,0.00021644,2]
[420835642,1776607843753,-500.0,0.00021644,2]
[420835643,1776607843762,-500.0,0.00021644,2]
[420835644,1776607843771,-500.0,0.00021644,2]
[420835645,1776607843781,-500.0,0.00021644,2]
[420835646,1776607843792,-500.0,0.00021644,2]
[420835647,1776607843801,-500.0,0.00021644,2]
[420835648,1776607843811,-500.0,0.00021644,2]
[420835649,1776607843820,-500.0,0.00021644,2]
[420835650,1776607843830,-462.37622479,0.00021644,2]
[420835651,1776607843839,-730.1,0.00021823,2]
[420835652,1776607843849,-636.97,0.000219,2]
[420835653,1776607843859,-1000.0,0.000219,2]
[420835654,1776607843868,-224.26913092,0.00021918,10]
[420835655,1776607843878,-192.14775,0.00021918,2]
[420835656,1776607843887,-24926.79889759,0.00021918,3]
[420835657,1776607843897,-151.0,0.00021918,2]
[420835658,1776607843906,-528.67857142,0.00021956,2]
[420835659,1776607843918,-209.7,0.00021992,30]
[420835660,1776607843927,-283.0,0.00022,2]
[420835661,1776607843937,-200.0,0.00022,2]
[420835662,1776607843947,-2210.0,0.00022,2]
[420835663,1776607843958,-336.0,0.00022,2]
[420835664,1776607843968,-319.0,0.00022,2]
[420835665,1776607843978,-1355.42,0.00022,7]
[420835666,1776607843987,-370.0,0.00022,2]
[420835667,1776607843998,-187.0,0.00022,2]
[420835668,1776607844007,-478.0,0.00022,2]
[420835669,1776607844017,-903.0,0.00022,2]
[420835670,1776607844027,-591.68,0.00022,30]
[420835671,1776607844036,-500.0,0.00022141,2]
[420835672,1776607844047,-726.87,0.0002219,30]
[420835673,1776607844056,-1869.7789087,0.0002254,5]
[420835674,1776607844067,-250.0,0.00022547,4]
[420835675,1776607844077,-730.1,0.00022592,2]
[420835676,1776607844087,-2000.0,0.000226,2]
[420835677,1776607844096,-25000.0,0.00022928,7]
[420835678,1776607844107,-25000.0,0.00022937,7]
[420835679,1776607844117,-500.0,0.00022945,2]
[420835680,1776607844127,-25000.0,0.00022946,7]
[420835681,1776607844137,-25000.0,0.00022955,7]
[420835682,1776607844147,-25000.0,0.00022963,7]
[420835683,1776607844156,-25000.0,0.00022972,7]
[420835684,1776607844166,-25000.0,0.00022981,7]